fUSD/lending_fUSD_20260118
["ID","MTS","AMOUNT","RATE_DAILY","PERIOD"]
[402594685,1768717865917,-662.081173,0.00016717,2]
[402594686,1768717865927,-151.0,0.00016717,2]
[402594687,1768717865936,-151.0,0.00016717,2]
[402594688,1768717865945,-188.444461,0.00016717,2]
[402594689,1768717865956,-208.251329,0.00016717,2]
[402594690,1768717865966,-188.444461,0.00016717,2]
[402594691,1768717865975,-208.251329,0.00016717,2]
[402594692,1768717865985,-188.444461,0.00016717,2]
[402594693,1768717865994,-208.251329,0.00016717,2]
[402594694,1768717866005,-188.444461,0.00016717,2]
[402594695,1768717866015,-208.251329,0.00016717,2]
[402594696,1768717866025,-9000.0,0.00016717,2]
[402594697,1768717866035,-552.1,0.00016722,2]
[402594698,1768717866045,-1000.0,0.00016724,2]
[402594699,1768717866055,-150.0,0.00016729,2]
[402594700,1768717866066,-150.0,0.00016729,2]
[402594701,1768717866076,-150.0,0.00016757,2]
[402594702,1768717866086,-150.0,0.00016764,2]
[402594703,1768717866095,-151.0,0.00016772,2]
[402594704,1768717866105,-151.0,0.00016772,2]
[402594705,1768717866115,-151.0,0.00016772,2]
[402594706,1768717866125,-856.280344,0.00016772,2]
[402594707,1768717866135,-246.420648,0.00016772,2]
[402594708,1768717866145,-856.280344,0.00016772,2]
[402594709,1768717866155,-278.316936,0.00016772,2]
[402594710,1768717866165,-246.420648,0.00016772,2]
[402594711,1768717866175,-856.280344,0.00016772,2]
[402594712,1768717866187,-278.316936,0.00016772,2]
[402594713,1768717866196,-246.420648,0.00016772,2]
[402594714,1768717866206,-856.280344,0.00016772,2]
[402594715,1768717866215,-278.316936,0.00016772,2]
[402594716,1768717866225,-1794.523344,0.00016772,2]
[402594717,1768717866235,-246.420648,0.00016772,2]
[402594718,1768717866244,-278.316936,0.00016772,2]
[402594719,1768717866254,-1794.523344,0.00016772,2]
[402594720,1768717866264,-1794.523344,0.00016772,2]
[402594721,1768717866274,-1794.523344,0.00016772,2]
[402594722,1768717866284,-524.650717,0.00016772,2]
[402594723,1768717866294,-151.0,0.00016772,2]
[402594724,1768717866304,-524.650717,0.00016772,2]
[402594725,1768717866314,-151.0,0.00016772,2]
[402594726,1768717866327,-524.650717,0.00016772,2]
[402594727,1768717866337,-171.542764,0.00016772,2]
[402594728,1768717866347,-230.089528,0.00016772,2]
[402594729,1768717866356,-524.650717,0.00016772,2]
[402594730,1768717866367,-171.542764,0.00016772,2]
[402594731,1768717866377,-171.542764,0.00016772,2]
[402594732,1768717866387,-171.542764,0.00016772,2]
[402594733,1768717866396,-151.0,0.00016772,2]
[402594734,1768717866406,-151.0,0.00016772,2]
[402594735,1768717866415,-151.0,0.00016772,2]
[402594736,1768717866424,-151.0,0.00016772,2]
[402594737,1768717866434,-1126.806079,0.00016772,2]
[402594738,1768717866443,-151.0,0.00016772,2]
[402594739,1768717866453,-1126.806079,0.00016772,2]
[402594740,1768717866463,-1126.806079,0.00016772,2]
[402594741,1768717866473,-1126.806079,0.00016772,2]
[402594742,1768717866483,-151.0,0.00016772,2]
[402594743,1768717866492,-151.0,0.00016772,2]
[402594744,1768717866502,-200.875141,0.00016772,2]
[402594745,1768717866512,-256.941762,0.00016772,2]
[402594746,1768717866521,-256.941762,0.00016772,2]
[402594747,1768717866531,-256.941762,0.00016772,2]
[402594748,1768717866541,-256.941762,0.00016772,2]
[402594749,1768717866552,-299.381413,0.00016772,2]
[402594750,1768717866561,-299.381413,0.00016772,2]
[402594751,1768717866571,-299.381413,0.00016772,2]
[402594752,1768717866580,-299.381413,0.00016772,2]
[402594753,1768717866590,-9000.0,0.00016772,2]
[402594754,1768717866599,-500.62039903,0.00016773,2]
[402594755,1768717866608,-525.58193812,0.00016773,2]
[402594756,1768717866618,-501.46068575,0.00016773,2]
[402594757,1768717866628,-500.0,0.00016773,2]
[402594758,1768717866638,-500.0,0.00016773,2]
[402594759,1768717866647,-500.71110259,0.00016773,2]
[402594760,1768717866656,-343.65136961,0.00016773,2]
[402594761,1768717866666,-500.0,0.00016773,2]
[402594762,1768717866675,-500.0,0.00016773,2]
[402594763,1768717866685,-500.0,0.00016773,2]
[402594764,1768717866695,-500.0,0.00016773,2]
[402594765,1768717866705,-500.0,0.00016773,2]
[402594766,1768717866715,-414.92649477,0.00016773,2]
[402594767,1768717866724,-500.0,0.00016773,2]
[402594768,1768717866733,-500.0,0.00016773,2]
[402594769,1768717866743,-1000.0,0.00016777,2]
[402594770,1768717866753,-150.0,0.00016777,2]
[402594771,1768717866762,-1000.0,0.00016797,2]
[402594772,1768717866771,-1600.0,0.000168,6]
[402594773,1768717866781,-150.0,0.00016807,2]
[402594774,1768717866972,-150.0,0.00016817,2]
[402594775,1768717866987,-151.0,0.00016827,2]
[402594776,1768717866997,-271.064633,0.00016827,2]
[402594777,1768717867007,-151.0,0.00016827,2]
[402594778,1768717867016,-177.784393,0.00016827,2]
[402594779,1768717867025,-487.111718,0.00016827,2]
[402594780,1768717867035,-1404.709489,0.00016827,2]
[402594781,1768717867047,-151.0,0.00016827,2]
[402594782,1768717867056,-177.784393,0.00016827,2]
[402594783,1768717867066,-487.111718,0.00016827,2]
[402594784,1768717867076,-1404.709489,0.00016827,2]
[402594785,1768717867085,-151.0,0.00016827,2]
[402594786,1768717867095,-177.784393,0.00016827,2]
[402594787,1768717867105,-487.111718,0.00016827,2]
[402594788,1768717867115,-151.0,0.00016827,2]
[402594789,1768717867125,-1404.709489,0.00016827,2]
[402594790,1768717867134,-177.784393,0.00016827,2]
[402594791,1768717867145,-151.0,0.00016827,2]
[402594792,1768717867155,-487.111718,0.00016827,2]
[402594793,1768717867165,-151.0,0.00016827,2]
[402594794,1768717867175,-1404.709489,0.00016827,2]
[402594795,1768717867184,-151.465997,0.00016827,2]
[402594796,1768717867195,-285.574657,0.00016827,2]
[402594797,1768717867206,-151.465997,0.00016827,2]
[402594798,1768717867216,-151.465997,0.00016827,2]
[402594799,1768717867227,-151.0,0.00016827,2]
[402594800,1768717867237,-151.465997,0.00016827,2]
[402594801,1768717867247,-286.961642,0.00016827,2]
[402594802,1768717867258,-180.806476,0.00016827,2]
[402594803,1768717867267,-151.0,0.00016827,2]
[402594804,1768717867277,-243.879286,0.00016827,2]
[402594805,1768717867287,-151.0,0.00016827,2]
[402594806,1768717867297,-151.0,0.00016827,2]
[402594807,1768717867306,-151.0,0.00016827,2]
[402594808,1768717867316,-170.28722,0.00016827,2]
[402594809,1768717867328,-151.0,0.00016827,2]
[402594810,1768717867337,-151.0,0.00016827,2]
[402594811,1768717867347,-151.0,0.00016827,2]
[402594812,1768717867357,-151.0,0.00016827,2]
[402594813,1768717867366,-151.0,0.00016827,2]
[402594814,1768717867377,-151.0,0.00016827,2]
[402594815,1768717867386,-334.523096,0.00016827,2]
[402594816,1768717867398,-334.523096,0.00016827,2]
[402594817,1768717867408,-151.0,0.00016827,2]
[402594818,1768717867417,-334.523096,0.00016827,2]
[402594819,1768717867427,-334.523096,0.00016827,2]
[402594820,1768717867437,-162.018412,0.00016827,2]
[402594821,1768717867447,-162.018412,0.00016827,2]
[402594822,1768717867457,-162.018412,0.00016827,2]
[402594823,1768717867466,-162.018412,0.00016827,2]
[402594824,1768717867476,-151.0,0.00016827,2]
[402594825,1768717867485,-151.0,0.00016827,2]
[402594826,1768717867495,-151.0,0.00016827,2]
[402594827,1768717867504,-151.0,0.00016827,2]
[402594828,1768717867514,-177.614921,0.00016827,2]
[402594829,1768717867524,-151.0,0.00016827,2]
[402594830,1768717867533,-151.0,0.00016827,2]
[402594831,1768717867542,-182.532286,0.00016827,2]
[402594832,1768717867552,-151.0,0.00016827,2]
[402594833,1768717867562,-151.0,0.00016827,2]
[402594834,1768717867572,-182.532286,0.00016827,2]
[402594835,1768717867583,-182.532286,0.00016827,2]
[402594836,1768717867592,-151.0,0.00016827,2]
[402594837,1768717867603,-151.0,0.00016827,2]
[402594838,1768717867613,-182.532286,0.00016827,2]
[402594839,1768717867624,-151.0,0.00016827,2]
[402594840,1768717867634,-151.0,0.00016827,2]
[402594841,1768717867644,-257.25966,0.00016827,2]
[402594842,1768717867654,-151.0,0.00016827,2]
[402594843,1768717867664,-366.267435,0.00016827,2]
[402594844,1768717867673,-366.267435,0.00016827,2]
[402594845,1768717867683,-366.267435,0.00016827,2]
[402594846,1768717867692,-366.267435,0.00016827,2]
[402594847,1768717867702,-432.200179,0.00016827,2]
[402594848,1768717867711,-432.200179,0.00016827,2]
[402594849,1768717867721,-778.829852,0.00016827,2]
[402594850,1768717867731,-432.200179,0.00016827,2]
[402594851,1768717867740,-778.829852,0.00016827,2]
[402594852,1768717867750,-432.200179,0.00016827,2]
[402594853,1768717867760,-778.829852,0.00016827,2]
[402594854,1768717867769,-299.693082,0.00016827,2]
[402594855,1768717867779,-299.693082,0.00016827,2]
[402594856,1768717867789,-299.693082,0.00016827,2]
[402594857,1768717867798,-778.829852,0.00016827,2]
[402594858,1768717867807,-151.0,0.00016827,2]
[402594859,1768717867817,-299.693082,0.00016827,2]
[402594860,1768717867826,-154.69277,0.00016827,2]
[402594861,1768717867836,-622.302096,0.00016827,2]
[402594862,1768717867846,-9000.0,0.00016827,2]
[402594863,1768717867856,-1000.0,0.00016843,2]
[402594864,1768717867866,-172.84,0.00016843,2]
[402594865,1768717867876,-552.1,0.0001685,2]
[402594866,1768717867886,-1000.0,0.0001685,2]
[402594867,1768717867896,-150.0,0.0001685,2]
[402594868,1768717867906,-7565.29536038,0.00016859,2]
[402594869,1768717867915,-1000.0,0.00016861,2]
[402594870,1768717867925,-150.0,0.0001687,2]
[402594871,1768717867935,-9000.0,0.00016882,2]
[402594872,1768717867944,-1000.0,0.00016894,2]
[402594873,1768717867954,-2000.0,0.000169,6]
[402594874,1768717867964,-1000.0,0.00016918,2]
[402594875,1768717867973,-150.0,0.00016923,2]
[402594876,1768717867985,-150.0,0.00016923,2]
[402594877,1768717867995,-150.0,0.00016923,2]
[402594878,1768717868006,-150.0,0.00016923,2]
[402594879,1768717868015,-9000.0,0.00016937,2]
[402594880,1768717868026,-150.0,0.00016956,2]
[402594881,1768717868036,-150.0,0.00016976,2]
[402594882,1768717868046,-552.1,0.00016977,2]
[402594883,1768717868056,-150.0,0.00016982,2]
[402594884,1768717868066,-1000.0,0.00016982,2]
[402594885,1768717868076,-200.0,0.00016983,2]
[402594886,1768717868087,-150.0,0.00016983,2]
[402594887,1768717868097,-151.0,0.00016986,2]
[402594888,1768717868107,-500.0,0.00016986,2]
[402594889,1768717868117,-500.0,0.00016986,2]
[402594890,1768717868127,-500.0,0.00016986,2]
[402594891,1768717868137,-500.0,0.00016986,2]
[402594892,1768717868147,-500.0,0.00016986,2]
[402594893,1768717868157,-500.0,0.00016986,2]
[402594894,1768717868167,-500.0,0.00016986,2]
[402594895,1768717868178,-500.0,0.00016986,2]
[402594896,1768717868188,-500.0,0.00016986,2]
[402594897,1768717868198,-360.92811031,0.00016986,2]
[402594898,1768717868207,-500.0,0.00016986,2]
[402594899,1768717868217,-500.0,0.00016986,2]
[402594900,1768717868227,-500.0,0.00016986,2]
[402594901,1768717868237,-500.0,0.00016986,2]
[402594902,1768717868246,-500.0,0.00016986,2]
[402594903,1768717868256,-500.0,0.00016986,2]
[402594904,1768717868268,-500.0,0.00016986,2]
[402594905,1768717868278,-500.0,0.00016986,2]
[402594906,1768717868287,-418.48625419,0.00016986,2]
[402594907,1768717868296,-500.0,0.00016986,2]
[402594908,1768717868306,-500.0,0.00016986,2]
[402594909,1768717868316,-500.0,0.00016986,2]
[402594910,1768717868328,-500.0,0.00016986,2]
[402594911,1768717868340,-314.25929892,0.00016986,2]
[402594912,1768717868350,-500.0,0.00016986,2]
[402594913,1768717868360,-500.0,0.00016986,2]
[402594914,1768717868371,-500.0,0.00016986,2]
[402594915,1768717868381,-500.0,0.00016986,2]
[402594916,1768717868391,-500.0,0.00016986,2]
[402594917,1768717868400,-512.12,0.00016986,2]
[402594918,1768717868410,-500.0,0.00016986,2]
[402594919,1768717868420,-500.0,0.00016986,2]
[402594920,1768717868429,-484.22130877,0.00016986,2]
[402594921,1768717868439,-709.73,0.00016986,2]
[402594922,1768717868450,-500.0,0.00016986,2]
[402594923,1768717868459,-500.0,0.00016986,2]
[402594924,1768717868469,-500.0,0.00016986,2]
[402594925,1768717868478,-500.0,0.00016986,2]
[402594926,1768717868487,-500.0,0.00016986,2]
[402594927,1768717868496,-500.0,0.00016986,2]
[402594928,1768717868506,-500.0,0.00016986,2]
[402594929,1768717868516,-500.0,0.00016986,2]
[402594930,1768717868526,-500.0,0.00016986,2]
[402594931,1768717868535,-500.0,0.00016986,2]
[402594932,1768717868545,-504.47,0.00016986,2]
[402594933,1768717868555,-151.0,0.00016986,2]
[402594934,1768717868564,-500.0,0.00016986,2]
[402594935,1768717868574,-500.0,0.00016986,2]
[402594936,1768717868583,-506.4,0.00016986,2]
[402594937,1768717868593,-500.0,0.00016986,2]
[402594938,1768717868602,-500.0,0.00016986,2]
[402594939,1768717868612,-500.0,0.00016986,2]
[402594940,1768717868622,-500.0,0.00016986,2]
[402594941,1768717868631,-1774.78,0.00016986,2]
[402594942,1768717868641,-500.0,0.00016986,2]
[402594943,1768717868651,-151.0,0.00016986,2]
[402594944,1768717868660,-500.0,0.00016986,2]
[402594945,1768717868670,-500.0,0.00016986,2]
[402594946,1768717868679,-500.0,0.00016986,2]
[402594947,1768717868689,-570.06950595,0.00016986,2]
[402594948,1768717868699,-500.0,0.00016986,2]
[402594949,1768717868708,-500.0,0.00016986,2]
[402594950,1768717868718,-188.699403,0.00016986,2]
[402594951,1768717868728,-151.0,0.00016986,2]
[402594952,1768717868737,-159.466638,0.00016986,2]
[402594953,1768717868747,-392.922136,0.00016986,2]
[402594954,1768717868757,-500.0,0.00016986,2]
[402594955,1768717868767,-151.0,0.00016986,2]
[402594956,1768717868776,-392.922136,0.00016986,2]
[402594957,1768717868786,-392.922136,0.00016986,2]
[402594958,1768717868796,-500.0,0.00016986,2]
[402594959,1768717868805,-392.922136,0.00016986,2]
[402594960,1768717868814,-540.23,0.00016986,2]
[402594961,1768717868823,-151.0,0.00016986,2]
[402594962,1768717868833,-500.0,0.00016986,2]
[402594963,1768717868843,-151.0,0.00016986,2]
[402594964,1768717868853,-151.0,0.00016986,2]
[402594965,1768717868863,-274.053781,0.00016986,2]
[402594966,1768717868872,-721.45,0.00016986,2]
[402594967,1768717868881,-274.053781,0.00016986,2]
[402594968,1768717868891,-500.0,0.00016986,2]
[402594969,1768717868901,-274.053781,0.00016986,2]
[402594970,1768717868910,-500.0,0.00016986,2]
[402594971,1768717868919,-274.053781,0.00016986,2]
[402594972,1768717868928,-500.0,0.00016986,2]
[402594973,1768717868937,-500.0,0.00016986,2]
[402594974,1768717868946,-334.17786071,0.00016986,2]
[402594975,1768717868956,-500.0,0.00016986,2]
[402594976,1768717868966,-500.0,0.00016986,2]
[402594977,1768717868975,-500.0,0.00016986,2]
[402594978,1768717868985,-255.647116,0.00016986,2]
[402594979,1768717868995,-255.647116,0.00016986,2]
[402594980,1768717869005,-255.647116,0.00016986,2]
[402594981,1768717869015,-500.0,0.00016986,2]
[402594982,1768717869026,-500.0,0.00016986,2]
[402594983,1768717869036,-255.647116,0.00016986,2]
[402594984,1768717869046,-532.16151842,0.00016986,2]
[402594985,1768717869056,-500.0,0.00016986,2]
[402594986,1768717869066,-500.0,0.00016986,2]
[402594987,1768717869076,-500.0,0.00016986,2]
[402594988,1768717869087,-500.0,0.00016986,2]
[402594989,1768717869097,-500.0,0.00016986,2]
[402594990,1768717869107,-500.0,0.00016986,2]
[402594991,1768717869116,-500.0,0.00016986,2]
[402594992,1768717869126,-151.0,0.00016986,2]
[402594993,1768717869136,-151.0,0.00016986,2]
[402594994,1768717869145,-500.0,0.00016986,2]
[402594995,1768717869156,-500.0,0.00016986,2]
[402594996,1768717869166,-151.0,0.00016986,2]
[402594997,1768717869176,-174.575979,0.00016986,2]
[402594998,1768717869186,-500.0,0.00016986,2]
[402594999,1768717869195,-151.0,0.00016986,2]
[402595000,1768717869205,-151.0,0.00016986,2]
[402595001,1768717869215,-561.13850279,0.00016986,2]
[402595002,1768717869225,-151.0,0.00016986,2]
[402595003,1768717869235,-500.0,0.00016986,2]
[402595004,1768717869244,-151.0,0.00016986,2]
[402595005,1768717869254,-500.0,0.00016986,2]
[402595006,1768717869263,-239.27805,0.00016986,2]
[402595007,1768717869273,-500.0,0.00016986,2]
[402595008,1768717869284,-500.0,0.00016986,2]
[402595009,1768717869293,-500.0,0.00016986,2]
[402595010,1768717869303,-500.0,0.00016986,2]
[402595011,1768717869313,-639.3,0.00016986,2]
[402595012,1768717869324,-500.0,0.00016986,2]
[402595013,1768717869335,-500.0,0.00016986,2]
[402595014,1768717869344,-500.0,0.00016986,2]
[402595015,1768717869354,-369.67164948,0.00016986,2]
[402595016,1768717869863,-130.32835052,0.00016986,2]
[402595017,1768717869874,-243.77575854,0.00016986,2]
[402595018,1768717869886,-256.22424146,0.00016986,2]
[402595019,1768717869895,-240.90550685,0.00016986,2]
[402595020,1768717870250,-500.0,0.00016438,2]
[402595021,1768717870260,-952.48144958,0.00016438,2]
[402595022,1768717870444,-109.24365584,0.00016438,2]
[402595023,1768717870858,-2278.09688206,0.00016438,2]
[402595024,1768717870868,-622.302096,0.00016685,2]
[402595025,1768717870877,-151.0,0.00016685,2]
[402595026,1768717870886,-537.679892,0.00016685,2]
[402595027,1768717870895,-622.302096,0.00016685,2]
[402595028,1768717870905,-537.679892,0.00016685,2]
[402595029,1768717870914,-537.679892,0.00016685,2]
[402595030,1768717870923,-622.302096,0.00016712,2]
[402595031,1768717870932,-151.0,0.00016712,2]
[402595032,1768717870941,-622.302096,0.00016712,2]
[402595033,1768717870950,-622.302096,0.00016712,2]
[402595034,1768717870959,-537.679892,0.00016712,2]
[402595035,1768717870968,-622.302096,0.00016712,2]
[402595036,1768717870978,-146.0630515,0.00016712,2]
[402595053,1768718053916,600.0,0.00027397,120]
[402595057,1768718138903,-500.0,0.00014907,2]
[402595058,1768718138989,-214.278824,0.00014907,2]
[402595059,1768718139094,-286.71180184,0.00014907,2]
[402595095,1768718388726,166.66,0.00014892,2]
[402595097,1768718401074,-166.66,0.00015206,2]
[402595098,1768718401103,-166.66,0.00015519,2]
[402595099,1768718401125,-166.66,0.00015833,2]
[402595100,1768718401148,-166.66,0.00016146,2]
[402595101,1768718401169,-155.24923383,0.00016238,2]
[402595102,1768718401191,-830.68368122,0.00016324,2]
[402595103,1768718401214,-5295.70675232,0.00016338,2]
[402595104,1768718401268,1200.0,0.00016337,2]
[402595105,1768718401479,300.0,0.00016337,2]
[402595106,1768718410995,-23461.72033263,0.00016338,2]
[402595169,1768718974160,-271.85,0.00015342,2]
[402595197,1768719031546,-223.85595231,0.00015641,2]
[402595199,1768719031555,-280.0,0.00015641,2]
[402595201,1768719031566,-250.0,0.00015653,2]
[402595203,1768719031576,-266.68452963,0.00015666,2]
[402595205,1768719031587,-454.19104179,0.00015666,2]
[402595208,1768719031599,-879.12442858,0.00015666,2]
[402595210,1768719031608,-292.24153214,0.00015744,2]
[402595212,1768719031618,-1000.0,0.00015795,2]
[402595213,1768719031632,-1000.0,0.00015798,2]
[402595214,1768719031641,-1000.0,0.00015822,2]
[402595215,1768719031651,-151.0,0.00015923,2]
[402595216,1768719031660,-151.0,0.00015923,2]
[402595217,1768719031670,-151.0,0.00015925,2]
[402595218,1768719031679,-151.0,0.00015925,2]
[402595219,1768719031689,-1000.0,0.00016006,2]
[402595220,1768719031699,-1000.0,0.00016027,2]
[402595221,1768719031708,-1200.0,0.00016104,2]
[402595222,1768719031718,-1000.0,0.00016105,2]
[402595223,1768719031727,-271.85,0.00016109,2]
[402595224,1768719031736,-1000.0,0.00016163,2]
[402595225,1768719031745,-150.0,0.000162,2]
[402595226,1768719031755,-150.0,0.000162,2]
[402595227,1768719031764,-150.0,0.000162,2]
[402595228,1768719031778,-150.0,0.000162,2]
[402595229,1768719031788,-150.0,0.000162,2]
[402595230,1768719031797,-159.8708442,0.000162,2]
[402595231,1768719031807,-150.0,0.000162,2]
[402595232,1768719031821,-150.0,0.000162,2]
[402595234,1768719031831,-150.0,0.000162,2]
[402595236,1768719031840,-150.0,0.000162,2]
[402595238,1768719031851,-150.0,0.000162,2]
[402595240,1768719031860,-150.0,0.000162,2]
[402595242,1768719031869,-1000.0,0.00016202,2]
[402595243,1768719031879,-726596.85448984,0.00016237,2]
[402595245,1768719031892,-37479.11236049,0.00016237,2]
[402595247,1768719031905,-86002.1988355,0.00016237,2]
[402595248,1768719031917,-126984.10151417,0.00016237,2]
[402595249,1768719031927,-150.0,0.00016329,2]
[402595250,1768719031936,-550.0,0.00016336,2]
[402595251,1768719031948,-500.0,0.00016336,2]
[402595252,1768719031959,-500.0,0.00016336,2]
[402595253,1768719031969,-500.0,0.00016336,2]
[402595254,1768719031979,-500.0,0.00016336,2]
[402595255,1768719031988,-460.87199487,0.00016336,2]
[402595256,1768719031998,-500.0,0.00016336,2]
[402595257,1768719032007,-500.0,0.00016336,2]
[402595258,1768719032019,-500.0,0.00016336,2]
[402595259,1768719032029,-500.0,0.00016336,2]
[402595260,1768719032039,-500.0,0.00016336,2]
[402595261,1768719032048,-500.0,0.00016336,2]
[402595262,1768719032059,-500.0,0.00016336,2]
[402595263,1768719032069,-500.0,0.00016336,2]
[402595264,1768719032079,-500.0,0.00016336,2]
[402595265,1768719032088,-500.0,0.00016336,2]
[402595266,1768719032099,-500.0,0.00016336,2]
[402595267,1768719032110,-500.0,0.00016336,2]
[402595268,1768719032119,-500.0,0.00016336,2]
[402595269,1768719032129,-500.0,0.00016336,2]
[402595270,1768719032140,-500.0,0.00016336,2]
[402595271,1768719032151,-500.0,0.00016336,2]
[402595272,1768719032161,-500.0,0.00016336,2]
[402595273,1768719032171,-500.0,0.00016336,2]
[402595274,1768719032180,-574.10260088,0.00016336,2]
[402595275,1768719032190,-500.0,0.00016336,2]
[402595276,1768719032200,-500.0,0.00016336,2]
[402595277,1768719032210,-500.0,0.00016336,2]
[402595278,1768719032219,-500.0,0.00016336,2]
[402595279,1768719032229,-500.0,0.00016336,2]
[402595280,1768719032239,-500.0,0.00016336,2]
[402595281,1768719032250,-500.0,0.00016336,2]
[402595282,1768719032260,-500.0,0.00016336,2]
[402595283,1768719032270,-4766.13607707,0.00016338,2]
[402595284,1768719032280,-150.73,0.00016352,2]
[402595285,1768719032289,-500.0,0.00016356,2]
[402595286,1768719032299,-500.0,0.00016356,2]
[402595287,1768719032309,-500.0,0.00016356,2]
[402595288,1768719032319,-150.0,0.00016356,2]
[402595289,1768719032328,-150.0,0.00016356,2]
[402595290,1768719032339,-191.50923865,0.0001636,2]
[402595291,1768719032348,-191.50923865,0.0001636,2]
[402595292,1768719032358,-500.0,0.00016377,2]
[402595293,1768719032369,-166.04243324,0.00016377,2]
[402595294,1768719032378,-158.75195904,0.00016377,2]
[402595295,1768719032388,-2098.24725557,0.00016378,2]
[402595296,1768719032410,-703.96192003,0.00016378,2]
[402595297,1768719032468,-591.37708814,0.00015628,2]
[402595298,1768719032585,-0.95104279,0.00015628,2]
[402595299,1768719032597,-407.67186907,0.00015628,2]
[402595300,1768719032607,-4484.58219789,0.00016378,2]
[402595301,1768719032643,-1000.0,0.0001572,2]
[402595302,1768719032653,-1000.0,0.00016337,2]
[402595303,1768719032664,-1713.20862651,0.00016378,2]
[402595304,1768719032674,-1055.74225193,0.00016378,2]
[402595306,1768719037637,-7944.25774807,0.00016378,2]
[402595307,1768719037647,-9000.0,0.00016378,2]
[402595308,1768719037656,-9000.0,0.00016378,2]
[402595309,1768719037666,-1197.49107717,0.00016378,2]
[402595312,1768719040050,-7802.50892283,0.00016378,2]
[402595313,1768719040058,-585.60118943,0.00016378,2]
[402595314,1768719040067,-9000.0,0.00016378,2]
[402595315,1768719040077,-9000.0,0.00016378,2]
[402595316,1768719040086,-9000.0,0.00016378,2]
[402595317,1768719040095,-9000.0,0.00016378,2]
[402595318,1768719040105,-171.0,0.000164,2]
[402595319,1768719040114,-467.61,0.000164,2]
[402595320,1768719040123,-150.0,0.000164,2]
[402595321,1768719040132,-1000.0,0.00016411,2]
[402595322,1768719040142,-1087.07062294,0.00016428,2]
[402595323,1768719040151,-322.6107,0.00016428,2]
[402595324,1768719040160,-174.61919141,0.00016428,2]
[402595325,1768719040170,-4001.0,0.00016428,2]
[402595326,1768719040179,-155.0,0.00016437,2]
[402595327,1768719040189,-401.0,0.00016437,2]
[402595328,1768719040198,-500.0,0.00016437,2]
[402595329,1768719040207,-500.0,0.00016438,2]
[402595330,1768719040216,-500.0,0.00016438,2]
[402595331,1768719040226,-516.67,0.00016438,2]
[402595332,1768719040235,-290.99779788,0.00016438,2]
[402595333,1768719040245,-500.0,0.00016438,2]
[402595334,1768719040254,-500.0,0.00016438,2]
[402595335,1768719040263,-500.0,0.00016438,2]
[402595336,1768719040272,-690.98,0.00016438,2]
[402595337,1768719040282,-500.0,0.00016438,2]
[402595338,1768719040292,-500.0,0.00016438,2]
[402595339,1768719040301,-581.65,0.00016438,2]
[402595340,1768719040311,-500.0,0.00016438,2]
[402595341,1768719040320,-500.0,0.00016438,2]
[402595342,1768719040329,-500.0,0.00016438,2]
[402595343,1768719040339,-500.0,0.00016438,2]
[402595344,1768719040348,-500.0,0.00016438,2]
[402595345,1768719040357,-500.0,0.00016438,2]
[402595347,1768719040368,-500.0,0.00016438,2]